bitfinex-derivatives/quotes_ETHF0:USTF0_20250501
["timestamp","ask_amount","ask_price","bid_price","bid_amount"]
[1746071103426,6.61403604,1813.2,1813.1,2.69351]
[1746071105024,5.51118604,1813.2,1813.1,2.69351]
[1746071105225,6.61403604,1813.2,1813.1,2.69351]
[1746071105828,1.10291,1813.1,1813.0,3.788]
[1746071106026,11.20591,1813.1,1813.0,3.788]
[1746071106327,1.10316,1812.7,1812.6,44.2641]
[1746071107327,2.70936,1812.7,1812.6,44.2641]
[1746071108831,2.70936,1812.7,1812.6,43.3315]
[1746071109032,2.70936,1812.7,1812.6,2.5315]
[1746071115232,1.10328,1812.5,1812.4,44.0078]
[1746071116137,2.85598,1812.5,1812.4,44.0078]
[1746071116539,2.85598,1812.5,1812.4,46.2148]
[1746071116839,2.85598,1812.5,1812.4,47.8986]
[1746071118139,2.85598,1812.5,1812.4,44.6908]
[1746071119138,6.53255989,1812.5,1812.4,45.6143]
[1746071120427,8.13305989,1812.5,1812.4,45.6143]
[1746071123340,4.45648,1812.5,1812.4,45.6143]
[1746071123744,4.45648,1812.5,1812.4,44.6908]
[1746071123935,4.45648,1812.5,1812.4,3.8908]
[1746071125139,4.45648,1812.5,1812.4,1.6838]
[1746071128040,3.55028,1812.5,1812.4,1.6838]
[1746071129938,11.0,1812.5,1811.8,3.2078]
[1746071130141,1.10364,1811.9,1811.8,4.1011]
[1746071130664,1.10364,1811.9,1811.8,0.8933]
[1746071131144,1.10364,1811.9,1811.8,4.6813]
[1746071131743,1.10364,1811.9,1811.8,6.2773]
[1746071133149,1.10364,1811.9,1811.8,2.4893]
[1746071134152,2.80724,1811.9,1811.8,2.4893]
[1746071134552,1.10383,1811.6,1811.5,3.2078]
[1746071134747,1.10383,1811.6,1811.5,4.0724]
[1746071134953,1.10377,1811.7,1811.6,1.1038]
[1746071136147,1.10377,1811.7,1811.6,1.7174]
[1746071136846,1.10383,1811.6,1811.5,6.9958]
[1746071137044,1.10383,1811.6,1811.5,3.788]
[1746071137351,1.10389,1811.5,1811.4,3.4747]
[1746071137548,1.10389,1811.5,1811.4,1.7573]
[1746071138248,1.10389,1811.5,1811.4,5.5453]
[1746071139845,1.10389,1811.5,1811.4,6.64925]
[1746071140453,1.7133,1811.6,1811.5,1.10389]
[1746071140849,1.7133,1811.6,1811.4,6.6492]
[1746071140850,2.81717,1811.6,1811.4,6.6492]
[1746071142251,1.10389,1811.5,1811.4,6.6492]
[1746071142552,1.10387,1811.6,1811.5,1.10389]
[1746071142946,1.10383,1811.6,1811.5,1.10389]
[1746071143251,4.3116,1811.7,1811.5,3.788]
[1746071143449,4.3116,1811.7,1811.5,4.89185]
[1746071144145,4.3116,1811.7,1811.5,8.67985]
[1746071144346,4.3116,1811.7,1811.5,4.89185]
[1746071144554,1.10383,1811.6,1811.5,4.89185]
[1746071145049,9.65783,1811.6,1811.0,3.2078]
[1746071145256,1.10407,1811.2,1811.1,1.8537]
[1746071145452,6.6472,1811.5,1811.1,1.8537]
[1746071145656,1.10407,1811.2,1811.1,1.8537]
[1746071146052,1.10407,1811.2,1811.1,42.6537]
[1746071147148,1.10405,1811.3,1811.1,42.6537]
[1746071147354,1.10407,1811.2,1811.1,42.6537]
[1746071155159,1.10407,1811.2,1811.1,44.2652]
[1746071156361,1.10405,1811.3,1811.1,44.2652]
[1746071156656,1.10407,1811.2,1811.1,40.8]
[1746071156856,1.10407,1811.2,1811.0,7.10085]
[1746071157160,1.7057,1811.4,1811.1,3.3915]
[1746071157359,1.10401,1811.3,1811.2,1.6078]
[1746071161961,1.7057,1811.4,1811.0,44.11286]
[1746071162166,1.10413,1811.1,1811.0,7.7351]
[1746071162659,1.10413,1811.1,1811.0,46.3264]
[1746071163163,2.84453,1811.1,1811.0,46.3264]
[1746071164460,11.05233,1811.1,1811.0,3.788]
[1746071164649,6.05233,1811.1,1811.0,3.788]
[1746071164857,2.84453,1811.1,1811.0,3.788]
[1746071166056,2.84453,1811.1,1811.0,4.715]
[1746071166349,2.84453,1811.1,1811.0,5.601]
[1746071167163,3.2078,1811.2,1811.0,6.70515]
[1746071167357,4.3119,1811.2,1811.1,1.73]
[1746071167951,3.2078,1811.2,1811.1,2.83413]
[1746071168460,4.31187,1811.2,1811.1,2.83413]
[1746071169267,3.2078,1811.2,1811.1,2.83413]
[1746071170770,3.67657989,1811.3,1811.2,1.10407]
[1746071170967,4.78058989,1811.3,1811.2,2.79797]
[1746071171168,4.78058989,1811.3,1811.2,6.58597]
[1746071171369,4.78058989,1811.3,1811.2,5.4819]
[1746071171564,4.31179,1811.4,1811.3,1.10401]
[1746071171765,1.10391,1811.5,1811.4,1.10392]
[1746071171957,1.10391,1811.5,1811.4,1.5856]
[1746071172168,1.10391,1811.5,1811.4,5.3736]
[1746071173274,1.10391,1811.5,1811.4,6.47755]
[1746071173570,11.54324989,1811.6,1811.5,1.10389]
[1746071173769,4.78044989,1811.6,1811.5,2.68949]
[1746071173965,3.67657989,1811.6,1811.5,2.68949]
[1746071174167,3.67657989,1811.6,1811.5,9.68529]
[1746071175067,4.78040989,1811.6,1811.5,6.47749]
[1746071175271,4.78040989,1811.6,1811.5,5.3736]
[1746071175463,1.10383,1811.6,1811.5,5.3736]
[1746071175669,1.10383,1811.6,1811.5,6.47749]
[1746071176466,1.10383,1811.6,1811.5,6.48317942]
[1746071177773,3.56953,1811.6,1811.5,6.48317942]
[1746071180074,2.71893,1811.6,1811.5,6.48317942]
[1746071181873,6.39550989,1811.6,1811.5,6.48317942]
[1746071182678,6.39550989,1811.6,1811.5,5.37928942]
[1746071183168,6.39550989,1811.6,1811.5,6.48317942]
[1746071183675,6.39550989,1811.6,1811.5,5.37928942]
[1746071184374,6.39550989,1811.6,1811.5,3.79368942]
[1746071184576,7.20490989,1811.6,1811.5,3.79368942]
[1746071185176,7.20490989,1811.6,1811.5,0.00568942]
[1746071187781,15.87331688,1811.6,1811.5,0.00568942]
[1746071188377,19.66131688,1811.6,1811.5,0.00568942]
[1746071188677,19.66131688,1811.6,1811.5,9.42e-06]
[1746071189072,15.87331688,1811.6,1811.5,9.42e-06]
[1746071189270,12.19673699,1811.6,1811.5,9.42e-06]
[1746071190078,15.40453699,1811.6,1811.5,9.42e-06]
[1746071190276,19.19253699,1811.6,1811.5,9.42e-06]
[1746071190472,19.19253699,1811.6,1810.9,1.5788]
[1746071190473,1.10419,1811.0,1810.9,1.5788]
[1746071190681,5.96837,1811.0,1810.5,3.2078]
[1746071190877,1.10444,1810.6,1810.5,5.89109]
[1746071191178,1.10442,1810.7,1810.6,1.5788]
[1746071192278,1.10444,1810.6,1810.5,6.9958]
[1746071192670,1.10444,1810.6,1810.5,47.7958]
[1746071192975,1.5753,1810.7,1810.5,48.90027]
[1746071193474,1.10444,1810.6,1810.5,47.7958]
[1746071193780,1.10444,1810.6,1810.5,3.788]
[1746071194080,8.72444,1810.6,1810.5,3.788]
[1746071194376,1.1045,1810.5,1810.4,2.2094]
[1746071194680,1.9554,1810.5,1810.4,2.2094]
[1746071194879,3.5709,1810.5,1810.4,2.2094]
[1746071195173,3.5709,1810.5,1810.4,5.9974]
[1746071195373,8.5709,1810.5,1810.4,5.9974]
[1746071195875,3.5709,1810.5,1810.4,5.9974]
[1746071196279,3.5709,1810.5,1810.4,3.788]
[1746071196578,4.0323779,1810.5,1810.4,3.788]
[1746071198073,3.5709,1810.5,1810.4,3.788]
[1746071198475,8.66836595,1810.5,1810.4,3.788]
[1746071198673,14.19420877,1810.5,1810.4,3.788]
[1746071199074,14.19421645,1810.5,1810.4,3.788]
[1746071199274,14.19421645,1810.5,1810.1,40.8]
[1746071199275,1.10468,1810.2,1810.1,40.8]
[1746071199775,3.572,1810.3,1810.0,1.6144]
[1746071199776,1.10474,1810.1,1810.0,1.6144]
[1746071199979,1.1048,1810.0,1809.9,1.6694]
[1746071200181,1.9129,1810.0,1809.9,40.8]
[1746071200782,2.7148,1810.0,1809.9,40.8]
[1746071201283,2.7148,1810.0,1809.9,44.588]
[1746071201484,9.4946,1810.0,1809.9,3.788]
[1746071202672,6.2868,1810.0,1809.9,3.788]
[1746071203184,9.4946,1810.0,1809.9,3.788]
[1746071204485,9.4946,1810.0,1809.9,2.03349939]
[1746071204779,1.10523,1809.3,1809.2,1.7199]
[1746071204979,4.31303,1809.3,1809.2,42.5199]
[1746071205178,4.31303,1809.3,1809.2,46.3079]
[1746071205385,1.10523,1809.3,1809.2,46.3079]
[1746071207976,2.76269,1809.6,1809.2,51.3079]
[1746071208181,1.10516,1809.5,1809.4,3.2078]
[1746071208378,1.10516,1809.5,1809.4,2.5702]
[1746071209085,1.10516,1809.5,1809.4,6.3582]
[1746071214280,1.10516,1809.5,1809.4,7.46337]
[1746071214589,1.10509,1809.6,1809.5,1.1051]
[1746071214790,4.31282,1809.7,1809.6,1.10505]
[1746071214989,4.31282,1809.7,1809.6,1.91745]
[1746071215389,6.7818,1809.9,1809.6,7.4851]
[1746071215590,1.10498,1809.7,1809.6,3.59013]
[1746071215981,1.10498,1809.7,1809.6,8.59011]
[1746071216186,1.10498,1809.7,1809.6,7.4851]
[1746071216893,1.10498,1809.7,1809.6,2.4851]
[1746071218194,2.82718,1809.7,1809.6,2.4851]
[1746071218390,6.03498,1809.7,1809.6,2.4851]
[1746071218592,2.82718,1809.7,1809.6,2.4851]
[1746071218994,1.10505,1809.6,1809.5,3.788]
[1746071219198,2.82725,1809.6,1809.5,5.4912]
[1746071220796,1.10505,1809.6,1809.5,5.4912]
[1746071222392,9.54397,1809.9,1809.5,6.59631]
[1746071222594,1.10498,1809.7,1809.6,2.5325]
[1746071222793,1.10498,1809.7,1809.6,3.63755]
[1746071222995,4.37196,1810.1,1809.6,2.5325]
[1746071222996,2.76186,1810.1,1809.6,2.5325]
[1746071223202,1.10487,1809.9,1809.8,1.1049]
[1746071223400,1.1047,1810.2,1809.8,4.3849]
[1746071223701,1.10474,1810.1,1810.0,4.31257]
[1746071223900,1.10474,1810.1,1810.0,5.13187]
[1746071224096,1.10474,1810.1,1810.0,13.91987]
[1746071224601,1.10474,1810.1,1810.0,12.8151]
[1746071224904,1.10472,1810.2,1810.0,13.9199]
[1746071225099,1.10472,1810.2,1810.1,1.10474]
[1746071225298,1.10472,1810.2,1810.0,7.8151]
[1746071225598,1.10472,1810.2,1810.0,8.91985]
[1746071225803,1.10466,1810.3,1810.1,1.10474]
[1746071226004,1.10468,1810.2,1810.1,1.10474]
[1746071227404,1.10474,1810.1,1810.0,8.91988]
[1746071227708,1.10473,1810.2,1810.0,8.91988]
[1746071227996,7.57847,1810.5,1810.0,8.91988]
[1746071228211,7.57847,1810.5,1810.1,1.10471]
[1746071228503,1.1047,1810.2,1810.1,1.10471]
[1746071228899,1.10474,1810.1,1810.0,8.91988]
[1746071229405,1.1047,1810.2,1810.1,1.10473]
[1746071229704,1.10474,1810.1,1810.0,8.91988]
[1746071231000,1.10473,1810.2,1810.1,1.10474]
[1746071233600,1.10466,1810.3,1810.2,1.10466]
[1746071234106,1.10466,1810.3,1810.2,4.89266]
[1746071236104,4.0513,1810.5,1810.4,1.10456]
[1746071236302,1.5998,1810.6,1810.5,1.1045]
[1746071236503,1.5998,1810.6,1810.5,2.7145]
[1746071236806,2.70424,1810.6,1810.5,43.5145]
[1746071237304,1.10444,1810.6,1810.5,47.3025]
[1746071237805,4.77465393,1810.7,1810.6,1.10444]
[1746071238007,4.77465393,1810.7,1810.6,3.3109]
[1746071238193,6.37445393,1810.7,1810.6,1.61]
[1746071238806,2.70417,1810.7,1810.6,1.61]
[1746071239007,1.10444,1810.6,1810.5,44.588]
[1746071239309,2.79014,1810.6,1810.5,44.588]
[1746071240911,2.79014,1810.6,1810.5,45.6925]
[1746071241111,2.79014,1810.6,1810.5,47.2999]
[1746071241505,2.79014,1810.6,1810.5,44.588]
[1746071242411,7.79014,1810.6,1810.5,3.788]
[1746071242609,9.37704,1810.6,1810.5,3.788]
[1746071242810,9.47449606,1810.6,1810.5,3.788]
[1746071243009,9.37704,1810.6,1810.5,3.788]
[1746071243220,1.10456,1810.4,1810.3,40.8]
[1746071243411,1.10462,1810.3,1810.2,2.68234]
[1746071243915,1.10462,1810.3,1810.2,43.48234]
[1746071244114,1.10462,1810.3,1810.2,47.27034]
[1746071246108,1.10462,1810.3,1810.2,46.1657]
[1746071246517,1.10462,1810.3,1810.2,47.27038]
[1746071246719,1.10462,1810.3,1810.2,46.1657]
[1746071249217,1.10462,1810.3,1810.2,47.27038]
[1746071249615,1.10462,1810.3,1810.2,46.1657]
[1746071250516,1.10462,1810.3,1810.2,47.27038]
[1746071250922,1.10462,1810.3,1810.2,48.09478]
[1746071256526,1.10462,1810.3,1810.2,46.9901]
[1746071258024,1.10462,1810.3,1810.2,48.09478]
[1746071258625,1.10462,1810.3,1810.2,46.9901]
[1746071258827,1.92072,1810.3,1810.2,46.9901]
[1746071259523,1.92072,1810.3,1810.2,48.09478]
[1746071260126,1.10462,1810.3,1810.2,48.09478]
[1746071260425,1.10462,1810.3,1810.2,51.30258]
[1746071263526,4.77487393,1810.4,1810.3,1.10462]
[1746071263725,3.67028393,1810.4,1810.3,2.71122]
[1746071264130,3.67028393,1810.4,1810.3,47.29922]
[1746071265027,6.63037282,1810.5,1810.4,1.10456]
[1746071265028,4.77481393,1810.5,1810.4,1.10456]
[1746071265225,4.77481393,1810.5,1810.4,3.57506]
[1746071265931,3.67028393,1810.5,1810.4,6.78286]
[1746071266134,3.67028393,1810.5,1810.4,10.57086]
[1746071268542,3.67028393,1810.5,1810.4,51.37086]
[1746071269339,3.67028393,1810.6,1810.5,1.1045]
[1746071269542,3.67028393,1810.6,1810.5,2.8321]
[1746071270141,3.67028393,1810.6,1810.5,6.6201]
[1746071270642,4.77472393,1810.6,1810.5,6.6201]
[1746071270842,3.67028393,1810.6,1810.5,6.6201]
[1746071271348,4.77472393,1810.6,1810.5,6.6201]
[1746071276154,4.77472393,1810.6,1810.5,5.5156]
[1746071276355,7.27282393,1810.6,1810.5,5.5156]
[1746071276652,7.27282393,1810.6,1810.5,3.788]
[1746071278657,10.97033043,1810.6,1810.5,3.788]
[1746071279659,10.97033043,1810.6,1810.5,4.8925]
[1746071279850,10.97033043,1810.6,1810.5,3.788]
[1746071280048,10.97033043,1810.6,1810.5,5.4865]
[1746071281451,10.97033043,1810.6,1810.5,3.788]
[1746071282559,9.13399158,1810.6,1810.5,3.788]
[1746071282952,9.95749158,1810.6,1810.5,3.788]
[1746071283152,9.95749158,1810.6,1810.5,5.4452]
[1746071289664,9.95749158,1810.6,1810.5,3.788]
[1746071290064,11.79383043,1810.6,1810.5,3.788]
[1746071291758,20.09909481,1810.6,1810.5,2.56223]
[1746071291965,1.10479,1810.1,1810.0,2.8094]
[1746071292266,1.10466,1810.3,1810.2,1.10466]
[1746071292868,4.6646,1810.4,1810.3,1.10462]
[1746071293259,4.6646,1810.4,1810.3,2.80922]
[1746071293662,4.6646,1810.4,1810.3,1.7046]
[1746071294064,1.1046,1810.4,1810.3,2.80922]
[1746071294368,1.10451,1810.5,1810.4,1.10451]
[1746071294569,1.10451,1810.5,1810.4,4.39181]
[1746071294863,9.29575043,1810.6,1810.5,1.1045]
[1746071295169,1.10446,1810.6,1810.5,2.7892]
[1746071295860,1.10446,1810.6,1810.5,1.6847]
[1746071296066,1.10446,1810.6,1810.5,5.4727]
[1746071298864,6.63787139,1810.6,1810.5,5.4727]
[1746071299063,6.63787139,1810.6,1810.5,6.5772]
[1746071303364,4.79368756,1810.6,1810.5,5.4727]
[1746071303764,3.68922756,1810.6,1810.5,6.5772]
[1746071303969,4.79366756,1810.6,1810.5,6.5772]
[1746071305271,3.68922756,1810.6,1810.5,6.5772]
[1746071306774,4.79366756,1810.6,1810.5,6.5772]
[1746071307075,6.63785139,1810.6,1810.5,6.5772]
[1746071307372,6.63785139,1810.6,1810.5,3.788]
[1746071307574,10.08755139,1810.6,1810.5,3.788]
[1746071308776,10.08755139,1810.6,1810.5,4.8925]
[1746071309275,10.08755139,1810.6,1810.5,7.2953]
[1746071310174,10.08755139,1810.6,1810.5,8.1082]
[1746071310976,11.93202185,1810.6,1810.5,8.1082]
[1746071311579,11.06832185,1810.6,1810.5,8.1082]
[1746071313377,7.37788185,1810.6,1810.5,8.1082]
[1746071314571,9.29518185,1810.7,1810.6,1.10444]
[1746071314775,9.29518185,1810.7,1810.6,2.78584]
[1746071315473,8.19078185,1810.7,1810.6,2.78584]
[1746071315671,7.37788185,1810.7,1810.6,2.78584]
[1746071316073,7.37788185,1810.7,1810.6,7.78584]
[1746071316379,7.37788185,1810.7,1810.6,2.78584]
[1746071317675,9.22235232,1810.8,1810.7,1.10437]
[1746071317981,9.22235232,1810.8,1810.7,5.95767]
[1746071318178,9.22235232,1810.8,1810.7,14.74567]
[1746071319277,9.22235232,1810.8,1810.7,55.54567]
[1746071319579,5.53686498,1810.8,1810.7,55.54567]
[1746071319781,5.53686498,1810.8,1810.7,50.54567]
[1746071321783,1.49074683,1810.8,1810.7,55.54567]
[1746071322273,1.49074683,1810.8,1810.7,50.54567]
[1746071324990,1.6958,1811.1,1811.0,1.10419]
[1746071326180,1.6958,1811.1,1811.0,4.89219]
[1746071328391,2.79993,1811.1,1811.0,4.89219]
[1746071329490,1.6958,1811.1,1811.0,4.89219]
[1746071330291,2.79993,1811.1,1811.0,4.89219]
[1746071331986,2.79993,1811.1,1811.0,3.788]
[1746071333184,1.10431,1810.8,1810.7,41.90435]
[1746071333389,1.10431,1810.8,1810.7,40.8]
[1746071333691,1.10431,1810.8,1810.7,41.90437]
[1746071334081,1.10431,1810.8,1810.7,45.69237]
[1746071335698,1.10431,1810.8,1810.7,44.588]
[1746071336891,2.78731,1810.8,1810.7,44.588]
[1746071337289,10.99511,1810.8,1810.7,3.788]
[1746071338094,1.1045,1810.5,1810.4,41.90455]
[1746071338393,1.1045,1810.5,1810.4,40.8]
[1746071338595,1.1045,1810.5,1810.4,41.90456]
[1746071339091,1.1045,1810.5,1810.4,45.69256]
[1746071339994,1.1045,1810.5,1810.4,44.588]
[1746071341896,1.1045,1810.5,1810.4,3.788]
[1746071342093,6.1045,1810.5,1810.4,3.788]
[1746071342308,1.1045,1810.5,1810.4,3.788]
[1746071342593,2.7965,1810.5,1810.4,3.788]
[1746071343404,6.47468668,1810.5,1810.4,3.788]
[1746071345095,6.47468668,1810.5,1810.4,4.89256]
[1746071345295,6.47468668,1810.5,1810.4,8.25746]
[1746071346698,2.7965,1810.5,1810.4,8.25746]
[1746071347800,1.1045,1810.5,1810.4,8.25746]
[1746071348296,1.1045,1810.5,1810.4,7.1529]
[1746071348500,1.1045,1810.5,1810.4,8.25746]
[1746071355803,1.1045,1810.5,1810.4,7.1529]
[1746071356105,1.1045,1810.5,1810.4,8.25746]
[1746071357105,2.69957,1810.6,1810.5,1.1045]
[1746071357307,8.94528668,1810.7,1810.5,1.652]
[1746071357503,1.10444,1810.6,1810.5,2.75646]
[1746071358307,1.10444,1810.6,1810.5,6.54446]
[1746071365206,2.72814,1810.6,1810.5,6.54446]
[1746071367623,2.72814,1810.6,1810.5,5.44]
[1746071367821,2.72814,1810.6,1810.5,3.788]
[1746071368215,1.10456,1810.4,1810.3,6.8099]
[1746071369116,2.83866,1810.4,1810.3,10.5979]
[1746071372422,3.67818668,1810.5,1810.4,1.10456]
[1746071372611,3.67818668,1810.5,1810.4,2.76286]
[1746071373221,3.67818668,1810.5,1810.4,6.55086]
[1746071373823,3.67818668,1810.5,1810.4,10.10586]
[1746071375723,1.10441,1810.7,1810.6,1.10444]
[1746071376116,1.10441,1810.7,1810.6,3.54794]
[1746071379928,4.78259668,1810.7,1810.6,3.54794]
[1746071383035,4.78259668,1810.7,1810.6,5.75714]
[1746071384129,6.63858604,1810.7,1810.6,5.75714]
[1746071385731,8.28208604,1810.7,1810.6,5.75714]
[1746071387624,7.17767604,1810.7,1810.6,5.75714]
[1746071387829,8.28204604,1810.7,1810.6,5.75714]
[1746071399837,5.53417604,1810.7,1810.6,5.75714]
[1746071407951,4.41981604,1810.7,1810.6,13.96494]
[1746071408236,1.52766604,1810.7,1810.6,13.96494]
[1746071408453,3.68896128,1810.7,1810.6,13.96494]
[1746071408939,1.97748128,1810.7,1810.6,19.79494]
[1746071409145,1.28e-06,1810.7,1810.6,19.79494]
[1746071409442,7.32e-06,1810.8,1810.7,1.10437]
[1746071409643,7.32e-06,1810.8,1810.7,6.38207]
[1746071409943,7.32e-06,1810.8,1810.7,11.38207]
[1746071410146,7.32e-06,1810.8,1810.7,15.17007]
[1746071410436,7.32e-06,1810.8,1810.7,55.97007]
[1746071410840,3.66755197,1810.9,1810.8,1.10431]
[1746071411045,0.08860197,1810.9,1810.8,12.69061]
[1746071411236,1.97e-06,1810.9,1810.8,17.69061]
[1746071411437,1.97e-06,1810.9,1810.8,58.49061]
[1746071412143,1.97e-06,1810.9,1810.8,62.27861]
[1746071413546,1.6977,1811.5,1811.4,1.10395]
[1746071413939,6.6977,1811.5,1811.4,1.10395]
[1746071414141,6.6977,1811.5,1811.4,45.69195]
[1746071414335,1.6977,1811.5,1811.4,45.69195]
[1746071420150,2.80159,1811.5,1811.4,45.69195]
[1746071421849,1.6977,1811.5,1811.4,45.69195]
[1746071424652,1.6326,1811.6,1811.5,1.10389]
[1746071424852,3.297,1811.6,1811.5,2.81509]
[1746071425043,4.40083,1811.6,1811.5,2.81509]
[1746071425244,4.40083,1811.6,1811.5,6.60309]
[1746071429161,4.40083,1811.6,1811.5,5.4992]
[1746071430062,4.40083,1811.6,1811.5,6.60309]
[1746071434961,4.40083,1811.6,1811.5,3.788]
[1746071435462,4.40083,1811.6,1811.5,4.89189]
[1746071436165,4.40083,1811.6,1811.5,3.788]
[1746071439959,3.297,1811.6,1811.5,4.89189]
[1746071440155,3.297,1811.6,1811.5,6.62809]
[1746071440356,4.40083,1811.6,1811.5,6.62809]
[1746071441660,3.297,1811.6,1811.5,6.62809]
[1746071441860,4.40083,1811.6,1811.5,6.62809]
[1746071442156,4.40083,1811.6,1811.5,3.788]
[1746071442362,7.60863,1811.6,1811.5,3.788]
[1746071443161,1.10389,1811.5,1811.4,1.10394]
[1746071443363,2.74359,1811.5,1811.4,2.80064]
[1746071443664,2.74359,1811.5,1811.4,1.6967]
[1746071444163,2.74359,1811.5,1811.4,5.4847]
[1746071445564,2.74359,1811.5,1811.4,3.788]
[1746071446152,6.6397,1811.5,1810.5,16.34751816]
[1746071446356,3.2078,1810.9,1810.8,1.90528]
[1746071446658,4.31198,1811.1,1810.9,1.10425]
[1746071446862,1.10444,1810.6,1810.5,10.51751816]
[1746071447065,1.10444,1810.6,1810.5,7.30971816]
[1746071447451,1.10444,1810.6,1810.5,49.74881816]
[1746071447857,1.10444,1810.6,1810.5,50.85331816]
[1746071448069,1.10444,1810.6,1810.5,54.64131816]
[1746071449265,1.10444,1810.6,1810.5,53.53681816]
[1746071449465,1.10444,1810.6,1810.5,51.89771816]
[1746071449757,1.10444,1810.6,1810.5,47.0633]
[1746071450568,1.10444,1810.6,1810.5,46.2635]
[1746071450863,1.10444,1810.6,1810.5,44.588]
[1746071451263,2.67754,1810.6,1810.5,44.588]
[1746071451666,3.1356769,1810.6,1810.5,44.588]
[1746071452871,3.1356769,1810.6,1810.5,3.788]
[1746071455772,2.76142,1810.4,1809.9,3.2078]
[1746071455962,1.10479,1810.1,1810.0,1.6597]
[1746071456274,1.10479,1810.1,1810.0,43.5645]
[1746071457067,1.10479,1810.1,1810.0,47.3525]
[1746071458673,1.10479,1810.1,1810.0,46.2477]
[1746071459273,1.10479,1810.1,1810.0,48.4576]
[1746071459476,1.10479,1810.1,1810.0,46.7979]
[1746071459667,1.10479,1810.1,1810.0,5.9979]
[1746071459868,7.79089,1810.1,1810.0,5.9979]
[1746071460068,1.10509,1809.6,1809.4,2.3851]
[1746071460275,1.10509,1809.6,1809.5,42.3969]
[1746071461066,1.10509,1809.6,1809.5,46.1849]
[1746071463473,2.83679,1809.6,1809.5,46.1849]
[1746071465175,3.2078,1810.1,1809.5,49.3927]
[1746071465380,1.1049,1809.9,1809.7,4.31274]
[1746071465582,1.1049,1809.9,1809.8,1.6971]
[1746071466075,1.1049,1809.9,1809.8,46.2851]
[1746071466576,1.1049,1809.9,1809.8,47.0982]
[1746071468083,1.1049,1809.9,1809.8,46.2851]
[1746071468292,2.772,1809.9,1809.8,46.2851]
[1746071468683,5.9798,1809.9,1809.8,2.1499]
[1746071469181,1.10492,1809.8,1809.7,1.6316]
[1746071469568,2.77202,1809.8,1809.7,1.6316]
[1746071470083,2.77202,1809.8,1809.7,5.4196]
[1746071480494,1.10491,1809.9,1809.7,5.4196]
[1746071480787,1.10491,1809.9,1809.8,1.7304]
[1746071481789,4.31271,1809.9,1809.8,1.7304]
[1746071481990,5.99221,1809.9,1809.8,1.7304]
[1746071482192,2.78441,1809.9,1809.8,5.5184]
[1746071483193,5.99221,1809.9,1809.8,5.5184]
[1746071483381,5.99221,1809.9,1809.8,3.788]
[1746071483582,5.99221,1809.9,1809.8,1.02451558]
[1746071483988,6.08926954,1809.9,1809.8,1.02451558]
[1746071484191,1.10498,1809.7,1809.6,2.2104]
[1746071484691,1.10498,1809.7,1809.6,1.10505]
[1746071484893,1.10498,1809.7,1809.6,2.70665]
[1746071486191,1.10498,1809.7,1809.6,1.6016]
[1746071487894,1.10498,1809.7,1809.6,2.70665]
[1746071491203,1.10488,1809.9,1809.8,1.10489]
[1746071491997,1.10488,1809.9,1809.8,2.78899]
[1746071492195,1.10488,1809.9,1809.8,6.57699]
[1746071492697,1.10488,1809.9,1809.8,5.4721]
[1746071494796,1.10488,1809.9,1809.8,6.57702]
[1746071495199,1.10488,1809.9,1809.8,4.89292]
[1746071495397,1.10488,1809.9,1809.8,6.62102]
[1746071496400,1.10488,1809.9,1809.8,5.5161]
[1746071496895,4.31268,1809.9,1809.8,3.788]
[1746071497093,5.14428,1809.9,1809.8,3.788]
[1746071499110,1.10492,1809.8,1809.7,2.2103]
[1746071499310,3.64112,1809.8,1809.7,2.2103]
[1746071499611,1.10505,1809.6,1809.5,4.50316]
[1746071500209,1.10505,1809.6,1809.5,8.29116]
[1746071504211,0.8316,1809.9,1809.5,15.3939]
[1746071504410,1.10493,1809.8,1809.7,1.10494]
[1746071505103,1.10493,1809.8,1809.7,4.89294]
[1746071505313,1.10493,1809.8,1809.7,3.788]
[1746071505510,4.31273,1809.8,1809.7,3.788]
[1746071505710,1.10493,1809.8,1809.7,3.788]
[1746071506012,2.71713,1809.8,1809.7,3.788]
[1746071506211,1.10498,1809.7,1809.6,3.7817]
[1746071506412,2.83428,1809.7,1809.6,3.7817]
[1746071508513,2.83428,1809.7,1809.6,1.5713]
[1746071509216,1.10505,1809.6,1809.5,3.788]
[1746071509516,2.68505,1809.6,1809.5,4.89311]
[1746071509716,2.68505,1809.6,1809.5,6.63021]
[1746071511715,1.10505,1809.6,1809.5,6.63021]
[1746071512118,1.10503,1809.7,1809.6,1.10502]
[1746071512318,1.10503,1809.7,1809.6,2.74172]
[1746071514922,1.10503,1809.7,1809.6,1.6367]
[1746071515714,1.10503,1809.7,1809.6,2.74175]
[1746071516018,15.22804372,1809.8,1809.7,1.10498]
[1746071516224,15.22804372,1809.8,1809.7,2.4568]
[1746071517019,14.12307372,1809.8,1809.6,1.10504]
[1746071517222,1.10504,1809.7,1809.6,1.6006]
[1746071517625,2.76894,1809.7,1809.6,1.6006]
[1746071518020,1.10504,1809.7,1809.6,2.70565]
[1746071519025,6.62719083,1809.7,1809.6,1.6006]
[1746071519218,6.62719083,1809.7,1809.6,2.70565]
[1746071521221,5.52215083,1809.7,1809.6,2.70565]
[1746071524227,5.52215083,1809.7,1809.6,3.52505]
[1746071526731,6.62706083,1809.9,1809.8,1.10492]
[1746071527123,5.52215083,1809.9,1809.8,5.74772]
[1746071527532,6.62701083,1809.9,1809.8,5.74772]
[1746071527733,6.62701083,1809.9,1809.8,7.44972]
[1746071528433,5.52215083,1809.9,1809.8,7.44972]
[1746071530031,5.52215083,1810.0,1809.9,1.10486]